bitfinex/quotes_BTCUSD_20250527
["timestamp","ask_amount","ask_price","bid_price","bid_amount"]
[1748331340114,0.19478461,109290.0,109280.0,1.31693541]
[1748331340847,0.0026353,109290.0,109280.0,1.335236]
[1748331341060,0.02093397,109290.0,109280.0,1.350336]
[1748331341272,0.02093389,109290.0,109280.0,1.350336]
[1748331341896,0.0026353,109290.0,109280.0,1.350336]
[1748331342113,0.0026353,109290.0,109280.0,2.00049]
[1748331343955,0.0026353,109290.0,109280.0,1.831047]
[1748331347067,0.0026353,109290.0,109280.0,1.773634]
[1748331348073,0.0026353,109290.0,109280.0,1.758531]
[1748331348911,0.0026353,109290.0,109280.0,1.620773]
[1748331349625,0.0026353,109290.0,109280.0,1.610753]
[1748331351687,0.0026353,109290.0,109280.0,1.25519899]
[1748331351905,0.0026353,109290.0,109280.0,1.610753]
[1748331352553,0.0026353,109290.0,109280.0,1.995513]
[1748331353351,0.0026353,109290.0,109280.0,1.63995899]
[1748331353557,0.0026353,109290.0,109280.0,1.995513]
[1748331357435,0.0026353,109290.0,109280.0,2.185513]
[1748331358629,0.0026353,109290.0,109280.0,2.580473]
[1748331361880,0.0026353,109290.0,109280.0,2.61056148]
[1748331362109,0.0026353,109290.0,109280.0,2.86467759]
[1748331362853,0.0026353,109290.0,109280.0,2.86067759]
[1748331363054,0.0026353,109290.0,109280.0,2.85967759]
[1748331363270,0.0026353,109290.0,109280.0,2.86567759]
[1748331365055,0.002,109310.0,109300.0,0.02744637]
[1748331365321,0.00209064,109310.0,109300.0,2.69847291]
[1748331365539,0.00209064,109310.0,109300.0,2.35582614]
[1748331365764,0.00209064,109310.0,109300.0,1.71606754]
[1748331365980,0.00209064,109310.0,109300.0,2.16795014]
[1748331366428,0.00209064,109310.0,109300.0,1.81635284]
[1748331366681,0.00209064,109310.0,109300.0,1.76059584]
[1748331367207,0.00209064,109310.0,109300.0,1.76996241]
[1748331367349,0.00209064,109310.0,109300.0,2.15917322]
[1748331367576,0.00209064,109310.0,109300.0,2.10524171]
[1748331367795,0.00209064,109310.0,109300.0,2.10324171]
[1748331368084,0.00209064,109310.0,109300.0,2.10424171]
[1748331368836,0.00209064,109310.0,109300.0,2.10473101]
[1748331369201,0.00209064,109310.0,109300.0,1.46497241]
[1748331369426,0.00209064,109310.0,109300.0,2.08933101]
[1748331369628,0.00209064,109310.0,109300.0,1.44957241]
[1748331369841,0.00209064,109310.0,109300.0,2.08933101]
[1748331371410,0.00209064,109310.0,109300.0,2.10473101]
[1748331372471,0.00209064,109310.0,109300.0,2.12043101]
[1748331375875,0.00209064,109310.0,109300.0,2.10473101]
[1748331378502,0.00209064,109310.0,109300.0,1.80213458]
[1748331378731,0.00209064,109310.0,109300.0,2.12201388]
[1748331379525,0.01123834,109310.0,109300.0,2.12201388]
[1748331379939,0.02038613,109310.0,109300.0,2.11653388]
[1748331380151,0.01123826,109310.0,109300.0,2.11653388]
[1748331382510,0.00209064,109310.0,109300.0,2.11653388]
[1748331382961,0.01123826,109310.0,109300.0,2.11653388]
[1748331383371,0.02038596,109310.0,109300.0,2.11653388]
[1748331383574,0.01123826,109310.0,109300.0,2.11653388]
[1748331384076,0.01123826,109310.0,109300.0,1.79665458]
[1748331384463,0.00209064,109310.0,109300.0,1.79665458]
[1748331386241,0.00209064,109310.0,109300.0,2.11653388]
[1748331386592,0.00209064,109310.0,109300.0,1.79665458]
[1748331387972,0.00209064,109310.0,109300.0,1.78728801]
[1748331389070,0.00209064,109310.0,109300.0,1.51304801]
[1748331389299,0.2341525,109310.0,109300.0,0.77199586]
[1748331389547,0.2341525,109310.0,109300.0,0.9748886]
[1748331389768,0.22500463,109310.0,109300.0,1.16702034]
[1748331389992,0.21585651,109310.0,109300.0,1.3148886]
[1748331390614,0.21585651,109310.0,109300.0,1.3138886]
[1748331391282,0.21585651,109310.0,109300.0,1.0396486]
[1748331391503,0.21585651,109310.0,109300.0,1.3138886]
[1748331396305,0.21585651,109310.0,109300.0,0.6996486]
[1748331396537,0.21585651,109310.0,109300.0,0.3797693]
[1748331396762,0.22441332,109310.0,109300.0,0.2747293]
[1748331396989,0.31393483,109310.0,109300.0,0.2747293]
[1748331397226,0.22441332,109310.0,109300.0,0.2747293]
[1748331397658,0.22441332,109310.0,109300.0,0.27424]
[1748331397885,0.22433157,109300.0,109290.0,0.37904]
[1748331398337,0.22284915,109290.0,109280.0,0.6692]
[1748331399238,0.72470596,109290.0,109280.0,0.66924]
[1748331399809,0.82023556,109290.0,109280.0,0.001]
[1748331400032,0.82023556,109290.0,109280.0,0.27528]
[1748331401173,0.82023556,109290.0,109280.0,0.27428]
[1748331402359,0.22316673,109280.0,109270.0,0.37904]
[1748331402566,0.22316673,109280.0,109270.0,0.65332]
[1748331403328,0.22316673,109280.0,109270.0,0.37904]
[1748331403550,0.22316673,109280.0,109270.0,0.65336]
[1748331404074,0.22316673,109280.0,109270.0,0.65436]
[1748331405134,0.22316673,109280.0,109270.0,0.65536]
[1748331405690,0.22316673,109280.0,109270.0,0.70929151]
[1748331405901,0.22316673,109280.0,109270.0,1.01102525]
[1748331407126,0.22316673,109280.0,109270.0,0.002]
[1748331407761,0.32725314,109280.0,109270.0,0.002]
[1748331407967,0.32725314,109280.0,109270.0,0.001]
[1748331408163,0.32825314,109280.0,109270.0,0.001]
[1748331408564,0.32725314,109280.0,109270.0,0.001]
[1748331408761,0.33025314,109280.0,109270.0,0.001]
[1748331408989,0.22278432,109270.0,109260.0,0.76346053]
[1748331409412,0.22278432,109270.0,109260.0,0.48914053]
[1748331409786,0.22278432,109270.0,109260.0,0.76346053]
[1748331410262,0.22387491,109270.0,109260.0,0.76346053]
[1748331410631,0.32796132,109270.0,109260.0,0.76346053]
[1748331410894,0.32896132,109270.0,109260.0,0.48914053]
[1748331411067,0.32896132,109270.0,109260.0,0.76346053]
[1748331412043,0.22487491,109270.0,109260.0,0.76346053]
[1748331412258,0.22487491,109270.0,109260.0,1.11912578]
[1748331412485,0.71817491,109270.0,109260.0,1.11916578]
[1748331412698,0.71817491,109270.0,109260.0,0.76350053]
[1748331418213,0.71817491,109270.0,109260.0,0.76354053]
[1748331419727,0.68757491,109270.0,109260.0,1.11920578]
[1748331419953,0.6967263,109270.0,109260.0,1.13560578]
[1748331420384,0.68757491,109270.0,109260.0,1.13560578]
[1748331420821,0.68757491,109270.0,109260.0,1.32780777]
[1748331421039,0.68757491,109270.0,109260.0,1.33696008]
[1748331421879,0.68757491,109270.0,109260.0,1.52696008]
[1748331422122,0.68757491,109270.0,109260.0,1.90616008]
[1748331422345,0.49539059,109270.0,109260.0,2.02095786]
[1748331422576,0.49539059,109270.0,109260.0,2.53931089]
[1748331423015,0.49539059,109270.0,109260.0,2.52687989]
[1748331423238,0.49539059,109270.0,109260.0,2.48380789]
[1748331423482,0.49539059,109270.0,109260.0,2.51109289]
[1748331423705,0.49539059,109270.0,109260.0,2.52477609]
[1748331424138,0.49539059,109270.0,109260.0,2.51109289]
[1748331424326,0.00209059,109270.0,109260.0,2.51109289]
[1748331426432,0.00209059,109270.0,109260.0,2.32721784]
[1748331427057,0.02039278,109270.0,109260.0,1.95051359]
[1748331427273,0.00209059,109270.0,109260.0,2.30617884]
[1748331427500,0.01124156,109270.0,109260.0,2.30617884]
[1748331428052,0.00209059,109270.0,109260.0,2.30617884]
[1748331428271,0.01124147,109270.0,109260.0,2.30617884]
[1748331428582,0.01124147,109270.0,109260.0,1.96763056]
[1748331428790,0.02039244,109270.0,109260.0,2.32329581]
[1748331430145,0.02954349,109270.0,109260.0,2.32329581]
[1748331430818,0.01124147,109270.0,109260.0,2.32329581]
[1748331431245,0.71713174,109300.0,109290.0,0.20129902]
[1748331431452,0.72628061,109300.0,109290.0,1.00858525]
[1748331431775,0.73482182,109300.0,109290.0,1.01225431]
[1748331432310,0.73482182,109300.0,109290.0,1.07555957]
[1748331432529,0.73882182,109300.0,109290.0,1.01225431]
[1748331432884,0.73482182,109300.0,109290.0,1.01225431]
[1748331433520,0.73482182,109300.0,109290.0,1.01225431]
[1748331434470,0.73682182,109300.0,109290.0,1.01225431]
[1748331435756,0.73682182,109300.0,109290.0,0.65658906]
[1748331435970,0.73682182,109300.0,109290.0,1.01225431]
[1748331436221,0.72828061,109300.0,109290.0,1.01225431]
[1748331437330,0.72828061,109300.0,109290.0,0.65658906]
[1748331438433,0.73681307,109300.0,109290.0,0.65658906]
[1748331442839,0.82635863,109300.0,109290.0,0.00366906]
[1748331443070,0.82635863,109300.0,109290.0,0.65650906]
[1748331443271,0.73681307,109300.0,109290.0,1.02132419]
[1748331443481,0.72101307,109300.0,109290.0,1.01217431]
[1748331443691,0.69658061,109300.0,109290.0,1.01217431]
[1748331444112,0.69658061,109300.0,109290.0,1.20432362]
[1748331444531,0.69658061,109300.0,109290.0,1.02132427]
[1748331444940,0.69658061,109300.0,109290.0,1.01217431]
[1748331445784,0.69658061,109300.0,109290.0,1.02132427]
[1748331446176,0.69658061,109300.0,109290.0,1.36132427]
[1748331447335,0.69658061,109300.0,109290.0,1.54432362]
[1748331447546,0.69658061,109300.0,109290.0,1.22205788]
[1748331447756,0.69658061,109300.0,109290.0,1.58687276]
[1748331447968,0.69658061,109300.0,109290.0,1.5960223]
[1748331448601,0.51359749,109300.0,109290.0,1.58687276]
[1748331448856,0.70572906,109300.0,109290.0,1.58687276]
[1748331449273,0.51359749,109300.0,109290.0,1.58687276]
[1748331449492,0.51359749,109300.0,109290.0,1.60317276]
[1748331449695,0.52274662,109300.0,109290.0,1.6123223]
[1748331450352,0.52274662,109300.0,109290.0,1.61232172]
[1748331450591,0.52274645,109300.0,109290.0,1.61232172]
[1748331451224,0.52274645,109300.0,109290.0,1.60317234]
[1748331451465,0.53189558,109300.0,109290.0,1.60317234]
[1748331451685,0.53189558,109300.0,109290.0,1.6123218]
[1748331452125,0.71487819,109300.0,109290.0,1.6123218]
[1748331452332,0.71487819,109300.0,109290.0,1.3217018]
[1748331452543,0.71487819,109300.0,109290.0,1.5960218]
[1748331453432,0.71487819,109300.0,109290.0,1.6860218]
[1748331453861,0.52274645,109300.0,109290.0,1.70202138]
[1748331454111,0.53189549,109300.0,109290.0,1.70202138]
[1748331454543,0.53189549,109300.0,109290.0,1.59372254]
[1748331454989,0.53189549,109300.0,109290.0,1.584573]
[1748331455208,0.7148781,109300.0,109290.0,1.59372254]
[1748331455417,0.70572948,109300.0,109290.0,1.584573]
[1748331455634,0.70572948,109300.0,109290.0,1.58457333]
[1748331456197,0.70572948,109300.0,109290.0,1.59372287]
[1748331456415,0.70572948,109300.0,109290.0,1.58457333]
[1748331456626,0.70572948,109300.0,109290.0,1.59372296]
[1748331456814,0.70572948,109300.0,109290.0,0.94088296]
[1748331456954,0.70572948,109300.0,109290.0,1.59372296]
[1748331458755,0.70572948,109300.0,109290.0,1.6028725]
[1748331459263,0.71487861,109300.0,109290.0,1.6028725]
[1748331459478,0.71487861,109300.0,109290.0,0.90658362]
[1748331459681,0.69658078,109300.0,109290.0,1.55870362]
[1748331459887,0.69658078,109300.0,109290.0,1.54360362]
[1748331460093,0.69658078,109300.0,109290.0,1.5527535]
[1748331460541,0.69658078,109300.0,109290.0,1.6519033]
[1748331460755,0.69658078,109300.0,109290.0,1.66105301]
[1748331460962,0.69658078,109300.0,109290.0,1.6519033]
[1748331461178,0.68743174,109300.0,109290.0,1.6519033]
[1748331461832,0.68743174,109300.0,109290.0,1.66105301]
[1748331462019,0.68743174,109300.0,109290.0,1.57105301]
[1748331464334,0.68743174,109300.0,109290.0,1.5527135]
[1748331464768,0.67828261,109300.0,109290.0,1.5527135]
[1748331466362,0.67828261,109300.0,109290.0,1.6427135]
[1748331467470,0.4953,109300.0,109290.0,1.84053173]
[1748331467660,0.4953,109300.0,109290.0,1.76603173]
[1748331467916,0.4953,109300.0,109290.0,2.44406873]
[1748331468348,0.50444854,109300.0,109290.0,2.44406873]
[1748331468561,0.50444854,109300.0,109290.0,2.36027173]
[1748331468778,0.4953,109300.0,109290.0,2.36027173]
[1748331469012,0.4953,109300.0,109290.0,2.12677173]
[1748331469013,0.51359717,109300.0,109290.0,2.12677173]
[1748331469279,0.51359717,109300.0,109290.0,1.92741173]
[1748331469531,0.51359691,109300.0,109290.0,1.92741173]
[1748331469705,0.50444837,109300.0,109290.0,1.92741173]
[1748331469914,0.51359691,109300.0,109290.0,1.92741173]
[1748331470328,0.51359691,109300.0,109290.0,1.57174648]
[1748331470578,0.51359691,109300.0,109290.0,1.92741173]
[1748331471119,0.50444837,109300.0,109290.0,1.92715156]
[1748331471363,0.51359691,109300.0,109290.0,1.92715156]
[1748331471575,0.02029691,109300.0,109290.0,2.01374267]
[1748331471791,0.01929691,109300.0,109290.0,2.01679636]
[1748331472020,0.01829691,109300.0,109290.0,2.01679636]
[1748331472244,0.01829691,109300.0,109290.0,2.01779636]
[1748331473165,0.01829691,109300.0,109290.0,2.01879636]
[1748331473569,0.02744562,109300.0,109290.0,1.9446227]
[1748331473817,0.01829691,109300.0,109290.0,1.9446227]
[1748331474233,0.01829691,109300.0,109290.0,2.3395827]
[1748331474447,0.02744553,109300.0,109290.0,2.3395827]
[1748331475302,0.02744553,109300.0,109290.0,2.0653027]
[1748331475511,0.02744553,109300.0,109290.0,2.3395827]
[1748331475696,0.01829691,109300.0,109290.0,2.3395827]
[1748331478730,0.01829683,109300.0,109290.0,2.3395827]
[1748331479436,0.01114795,109310.0,109300.0,0.21042923]
[1748331479666,0.02714795,109310.0,109300.0,0.56609448]
[1748331480133,0.03629533,109310.0,109300.0,0.57524302]
[1748331480362,0.04544328,109310.0,109300.0,0.57524302]
[1748331480568,0.03734483,109310.0,109300.0,0.57524302]
[1748331480913,0.03834483,109310.0,109300.0,0.57524302]
[1748331481419,0.03834466,109310.0,109300.0,0.57524302]
[1748331481640,0.04749253,109310.0,109300.0,0.57524302]
[1748331482715,0.03834466,109310.0,109300.0,0.57524302]
[1748331482933,0.04749245,109310.0,109300.0,0.57524302]
[1748331483756,0.02919704,109310.0,109300.0,1.58294827]
[1748331483967,0.03834474,109310.0,109300.0,1.58294827]
[1748331484385,0.02234474,109310.0,109300.0,1.58294827]
[1748331485043,0.02234474,109310.0,109300.0,0.87161777]
[1748331485459,0.02234474,109310.0,109300.0,1.22728302]
[1748331486243,0.03149261,109310.0,109300.0,1.22728302]
[1748331486848,0.02234474,109310.0,109300.0,1.22728302]
[1748331487055,0.03149253,109310.0,109300.0,1.22728302]
[1748331489259,0.04064048,109310.0,109300.0,1.22728302]
[1748331489781,0.03149253,109310.0,109300.0,1.22728302]
[1748331489985,0.0406404,109310.0,109300.0,1.22728302]
[1748331490190,0.0564404,109310.0,109300.0,1.22728302]
[1748331490414,0.4933,109330.0,109300.0,1.23643139]
[1748331490633,0.51164204,109330.0,109320.0,0.56605616]
[1748331490847,0.71286734,109330.0,109320.0,1.20826921]
[1748331491056,0.52993486,109330.0,109320.0,1.22656352]
[1748331491264,0.52993486,109330.0,109320.0,1.21741649]
[1748331491265,0.70372123,109330.0,109320.0,1.21741649]
[1748331491496,0.50249534,109330.0,109320.0,1.23571048]
[1748331491711,0.5303435,109330.0,109320.0,1.23571048]
[1748331491902,0.5323435,109330.0,109320.0,1.23571048]
[1748331492331,0.55063614,109330.0,109320.0,1.22656361]
[1748331492547,0.7335693,109330.0,109320.0,0.87089836]
[1748331492753,0.72342319,109330.0,109320.0,1.25400361]
[1748331492960,0.72542319,109330.0,109320.0,1.25400361]
[1748331493176,0.71627699,109330.0,109320.0,1.25400361]
[1748331493309,0.71427699,109330.0,109320.0,1.30793512]
[1748331493525,0.71427699,109330.0,109320.0,0.89933836]
[1748331493729,0.71427699,109330.0,109320.0,1.25500361]
[1748331494415,0.52019764,109330.0,109320.0,1.26415064]
[1748331494619,0.52019764,109330.0,109320.0,1.26415006]
[1748331494836,0.52934359,109330.0,109320.0,1.26515006]
[1748331495256,0.03604359,109330.0,109320.0,1.29450886]
[1748331498038,0.02689714,109330.0,109320.0,1.29450886]
[1748331498268,0.02689714,109330.0,109320.0,1.29460886]
[1748331498479,0.0360435,109330.0,109320.0,1.48460886]
[1748331498690,0.0360435,109330.0,109320.0,1.12894361]
[1748331498910,0.0360435,109330.0,109320.0,1.29460886]
[1748331499927,0.04518995,109330.0,109320.0,1.63460886]
[1748331501851,0.04518995,109330.0,109320.0,1.36032886]
[1748331502086,0.04518995,109330.0,109320.0,1.63456886]
[1748331502478,0.05433648,109330.0,109320.0,1.63456886]
[1748331503601,0.04518995,109330.0,109320.0,1.82456886]
[1748331503823,0.04518995,109330.0,109320.0,1.63456886]
[1748331504637,0.04518995,109330.0,109320.0,1.55285891]
[1748331505129,0.04518995,109330.0,109320.0,1.56200628]
[1748331505344,0.04518561,109330.0,109320.0,1.56200628]
[1748331507486,0.0177466,109330.0,109320.0,1.56200628]
[1748331507707,0.0268928,109330.0,109320.0,1.56200628]
[1748331507923,0.03603916,109330.0,109320.0,1.56200628]
[1748331508138,0.03603916,109330.0,109320.0,1.84591005]
[1748331508356,0.03603916,109330.0,109320.0,1.86091005]
[1748331508600,0.03603916,109330.0,109320.0,2.05091005]
[1748331509490,0.0268928,109330.0,109320.0,2.05091005]
[1748331509731,0.03603908,109330.0,109320.0,2.05091005]
[1748331509960,0.02689271,109330.0,109320.0,2.05091005]
[1748331510182,0.03603899,109330.0,109320.0,2.05091005]
[1748331513105,0.04518544,109330.0,109320.0,2.03591005]
[1748331513431,0.04518535,109330.0,109320.0,2.03591005]
[1748331520376,0.04518535,109330.0,109320.0,1.76167005]
[1748331520611,0.03603899,109330.0,109320.0,2.03591005]
[1748331520845,0.02689271,109330.0,109320.0,2.03591005]
[1748331521062,0.03603899,109330.0,109320.0,2.03591005]
[1748331521714,0.02689271,109330.0,109320.0,2.05121005]
[1748331522267,0.03603899,109330.0,109320.0,2.05121005]
[1748331523645,0.02689271,109330.0,109320.0,2.05121005]
[1748331524061,0.03603891,109330.0,109320.0,2.05121005]
[1748331524507,0.0177466,109330.0,109320.0,2.05121005]
[1748331525326,0.02689263,109330.0,109320.0,2.05121005]
[1748331525674,0.03603883,109330.0,109320.0,2.05121005]
[1748331525880,0.02689263,109330.0,109320.0,2.05121005]
[1748331526449,0.02689263,109330.0,109320.0,2.44605005]
[1748331527179,0.03603883,109330.0,109320.0,2.44605005]
[1748331528282,0.03603883,109330.0,109320.0,1.80648103]
[1748331528490,0.04518519,109330.0,109320.0,2.44605005]
[1748331528709,0.03603883,109330.0,109320.0,1.79473005]
[1748331528906,0.04518528,109330.0,109320.0,2.42987005]
[1748331529397,0.04518519,109330.0,109320.0,2.42987005]
[1748331529845,0.04518519,109330.0,109320.0,1.77943005]
[1748331530067,0.04518519,109330.0,109320.0,2.42987005]
[1748331531020,0.04518519,109330.0,109320.0,1.77943005]
[1748331531246,0.05433172,109330.0,109320.0,2.42987013]
[1748331531612,0.05433164,109330.0,109320.0,2.42986963]
[1748331532818,0.05433164,109330.0,109320.0,2.23986963]
[1748331535187,0.05433222,109330.0,109320.0,1.60030061]
[1748331535385,0.05433222,109330.0,109320.0,2.23986963]
[1748331536576,0.23726521,109330.0,109320.0,1.56198878]
[1748331536799,0.22811901,109330.0,109320.0,2.20607581]
[1748331537262,0.22811901,109330.0,109320.0,2.21522276]
[1748331539303,0.22811901,109330.0,109320.0,1.57565374]
[1748331539535,0.22811901,109330.0,109320.0,2.21522276]
[1748331539759,0.22811901,109330.0,109320.0,2.20607581]
[1748331540019,0.22811901,109330.0,109320.0,2.38692878]
[1748331540232,0.22811901,109330.0,109320.0,2.39607581]
[1748331540464,0.22811901,109330.0,109320.0,2.42172276]
[1748331540675,0.22811901,109330.0,109320.0,2.41257581]
[1748331540926,0.22811901,109330.0,109320.0,1.74563581]
[1748331541137,0.22811901,109330.0,109320.0,2.39607581]
[1748331542096,0.22811901,109330.0,109320.0,2.41127581]
[1748331543034,0.22811901,109330.0,109320.0,2.40212878]
[1748331543242,0.21897265,109330.0,109320.0,2.40212878]
[1748331543902,0.21897265,109330.0,109320.0,2.41127581]
[1748331544375,0.00860065,109330.0,109320.0,2.5570361]
[1748331544587,0.00860065,109330.0,109320.0,2.52616824]
[1748331544818,0.00860065,109330.0,109320.0,2.33616824]
[1748331545318,4.948e-05,109330.0,109320.0,3.72613775]
[1748331545541,4.948e-05,109330.0,109320.0,3.33783524]
[1748331546417,4.948e-05,109330.0,109320.0,3.22447324]
[1748331546632,4.948e-05,109330.0,109320.0,3.46840475]
[1748331546846,4.948e-05,109330.0,109320.0,3.41447324]
[1748331549406,4.948e-05,109330.0,109320.0,3.73425775]
[1748331549601,4.948e-05,109330.0,109320.0,3.41447324]
[1748331550066,4.948e-05,109330.0,109320.0,2.77490422]
[1748331550262,4.948e-05,109330.0,109320.0,3.41447324]
[1748331551950,4.948e-05,109330.0,109320.0,3.14027324]
[1748331552164,4.948e-05,109330.0,109320.0,3.41447324]
[1748331552614,4.948e-05,109330.0,109320.0,2.77490422]
[1748331552798,4.948e-05,109330.0,109320.0,3.28960224]
[1748331553011,4.948e-05,109330.0,109320.0,2.92059224]
[1748331555534,4.948e-05,109330.0,109320.0,2.91959224]
[1748331555770,4.948e-05,109330.0,109320.0,2.92359224]
[1748331555996,4.948e-05,109330.0,109320.0,2.71075824]
[1748331556205,4.948e-05,109330.0,109320.0,2.71375824]
[1748331558446,4.948e-05,109330.0,109320.0,2.43955824]
[1748331558642,4.948e-05,109330.0,109320.0,2.71375824]
[1748331562436,4.948e-05,109330.0,109320.0,3.03354275]
[1748331565753,4e-05,109350.0,109340.0,0.210352]
[1748331565959,4e-05,109350.0,109340.0,1.60482658]
[1748331566178,0.00918436,109350.0,109340.0,1.60482658]
[1748331566381,0.00918436,109350.0,109340.0,1.61399233]
[1748331566382,0.00918427,109350.0,109340.0,1.61399233]
[1748331566800,4e-05,109350.0,109340.0,1.61399233]
[1748331567006,0.01832855,109350.0,109340.0,1.61399233]
[1748331567214,0.00918419,109350.0,109340.0,1.66892384]
[1748331567438,0.01832855,109350.0,109340.0,1.61499233]
[1748331567615,0.01832855,109350.0,109340.0,1.39826624]
[1748331567795,0.01832855,109350.0,109340.0,1.60861824]
[1748331568000,0.01832855,109350.0,109340.0,1.59945249]
[1748331568299,0.02747307,109350.0,109340.0,1.59945249]
[1748331568508,0.02747307,109350.0,109340.0,1.59941249]
[1748331569278,0.00918436,109350.0,109340.0,1.61581249]
[1748331569491,0.0183288,109350.0,109340.0,1.61581249]
[1748331569700,0.00918436,109350.0,109340.0,1.61581249]
[1748331570600,0.01832888,109350.0,109340.0,1.61581249]
[1748331571065,0.00918436,109350.0,109340.0,1.61581249]
[1748331571256,0.0183288,109350.0,109340.0,1.61581249]
[1748331571468,0.00918436,109350.0,109340.0,1.61581249]
[1748331572528,0.00918436,109350.0,109340.0,1.80581249]
[1748331572718,0.00918427,109350.0,109340.0,1.80581249]
[1748331573154,0.00918427,109350.0,109340.0,2.20057249]
[1748331573723,0.01832863,109350.0,109340.0,2.20057249]
[1748331574637,4e-05,109350.0,109340.0,2.20057249]
[1748331574846,0.00918427,109350.0,109340.0,2.01057249]
[1748331575060,0.00918427,109350.0,109340.0,2.03800349]
[1748331575898,0.01832863,109350.0,109340.0,2.03800349]
[1748331576114,0.00918419,109350.0,109340.0,2.03800349]
[1748331576462,0.01832846,109350.0,109340.0,1.35628349]
[1748331576676,0.01832846,109350.0,109340.0,2.00556349]
[1748331576881,0.0274729,109350.0,109340.0,2.00556349]
[1748331577086,0.01832846,109350.0,109340.0,2.11126349]
[1748331577304,0.0274729,109350.0,109340.0,2.11126349]
[1748331577512,0.02747282,109350.0,109340.0,2.11126349]
[1748331577931,0.01748025,109350.0,109340.0,2.11126349]
[1748331579620,0.01748025,109350.0,109340.0,1.47169447]
[1748331579802,0.01748025,109350.0,109340.0,1.46198349]
[1748331580017,0.01748025,109350.0,109340.0,2.11126349]
[1748331580395,0.00833598,109350.0,109340.0,2.11126349]
[1748331580601,0.05088771,109360.0,109350.0,0.55947737]
[1748331580816,0.05944124,109360.0,109350.0,1.28859195]
[1748331581405,0.05944082,109360.0,109350.0,1.28859195]
[1748331581608,0.04314082,109360.0,109350.0,1.28859195]
[1748331581821,0.04514082,109360.0,109350.0,1.28859195]
[1748331583198,0.05428476,109360.0,109350.0,1.28859195]
[1748331583454,0.01969697,109360.0,109350.0,1.58916995]
[1748331583661,0.01114344,109360.0,109350.0,1.58916995]
[1748331583873,0.01114335,109360.0,109350.0,1.44700195]
[1748331584080,0.01114335,109360.0,109350.0,1.46240195]
[1748331584341,0.002,109360.0,109350.0,1.55307561]
[1748331584770,0.002,109360.0,109350.0,1.58050461]
[1748331584978,0.001,109360.0,109350.0,1.58050461]
[1748331585193,0.04571426,109370.0,109360.0,0.21031353]
[1748331585400,0.00914252,109370.0,109360.0,1.3002436]
[1748331585637,0.02683386,109370.0,109360.0,1.3002436]
[1748331585847,0.00854857,109370.0,109360.0,2.66383411]
[1748331586078,0.00854857,109370.0,109360.0,2.64580011]
[1748331586287,0.00854857,109370.0,109360.0,2.39309511]
[1748331586520,0.00854857,109370.0,109360.0,2.73309511]
[1748331586738,0.04156806,109380.0,109370.0,0.21029431]
[1748331586987,0.03242588,109380.0,109370.0,0.95490889]
[1748331587204,0.04156815,109380.0,109370.0,0.95490889]
[1748331587409,0.01414185,109380.0,109370.0,0.97060889]
[1748331587854,0.03182664,109380.0,109370.0,0.97060889]
[1748331588605,0.02328387,109380.0,109370.0,0.97460889]
[1748331590061,0.03242605,109380.0,109370.0,0.97460889]
[1748331590234,0.03242605,109380.0,109370.0,0.95890889]
[1748331590647,0.02328387,109380.0,109370.0,0.95890889]
[1748331590885,0.03242605,109380.0,109370.0,0.95890889]
[1748331591315,0.04156832,109380.0,109370.0,0.95890889]
[1748331591724,0.04156832,109380.0,109370.0,1.60702889]
[1748331593022,0.03242605,109380.0,109370.0,1.60702889]
[1748331593991,0.04156832,109380.0,109370.0,1.60702889]
[1748331594193,0.02328387,109380.0,109370.0,1.60702889]
[1748331594400,0.03242614,109380.0,109370.0,1.62312889]
[1748331594612,0.01414185,109380.0,109370.0,1.62312889]
[1748331594823,0.02328395,109380.0,109370.0,1.62312889]
[1748331595256,0.02328387,109380.0,109370.0,1.62312889]
[1748331595507,0.03242597,109380.0,109370.0,1.62312889]
[1748331596146,0.01414185,109380.0,109370.0,1.62312889]
[1748331597163,0.005,109380.0,109370.0,1.62312889]
[1748331597370,0.01414177,109380.0,109370.0,1.62312889]
[1748331597841,0.005,109380.0,109370.0,1.62312889]
[1748331598053,0.01414177,109380.0,109370.0,1.62312889]
[1748331598290,0.01414168,109380.0,109370.0,1.62312889]
[1748331600055,0.02328353,109380.0,109370.0,1.62312889]
[1748331600720,0.005,109380.0,109370.0,1.96312889]
[1748331601207,0.005,109380.0,109370.0,2.86166189]
[1748331601427,0.005,109380.0,109370.0,2.77044089]
[1748331601643,0.005,109380.0,109370.0,2.72625489]
[1748331602559,0.005,109380.0,109370.0,2.68595589]
[1748331604607,0.005,109380.0,109370.0,1.42841087]
[1748331604608,0.01414168,109380.0,109370.0,1.42841087]
[1748331604832,0.005,109380.0,109370.0,2.06797989]
[1748331605819,0.005,109380.0,109370.0,1.15429087]
[1748331606045,0.005,109380.0,109370.0,2.06793989]
[1748331606244,0.005,109380.0,109370.0,2.25793989]
[1748331607415,0.005,109380.0,109370.0,2.24183989]
[1748331607610,0.02328387,109380.0,109370.0,2.13059174]
[1748331607830,0.005,109380.0,109370.0,2.24139774]
[1748331608061,0.02328361,109380.0,109370.0,2.24157874]
[1748331608286,0.02328361,109380.0,109370.0,2.24699174]
[1748331608287,0.005,109380.0,109370.0,2.24699174]
[1748331608510,0.0183332,109390.0,109380.0,0.58177508]
[1748331608741,0.0183332,109390.0,109380.0,2.46145466]
[1748331608968,0.0183332,109390.0,109380.0,1.92739666]
[1748331609190,0.02747421,109390.0,109380.0,2.46667066]
[1748331609411,0.03661514,109390.0,109380.0,1.19036164]
[1748331609634,0.04575632,109390.0,109380.0,2.46667066]
[1748331609825,0.03661514,109390.0,109380.0,2.34949166]
[1748331610003,0.05489759,109390.0,109380.0,1.81913066]
[1748331610194,0.25024804,109390.0,109380.0,1.46375458]
[1748331610421,0.25024804,109390.0,109380.0,1.70246451]
[1748331610643,0.25024804,109390.0,109380.0,1.37420902]
[1748331610862,0.25024804,109390.0,109380.0,2.03617524]
[1748331611069,0.25024804,109390.0,109380.0,1.38813524]
[1748331611312,0.25878682,109390.0,109380.0,2.03617524]
[1748331611956,0.25878682,109390.0,109380.0,1.75156605]
[1748331612190,0.25878682,109390.0,109380.0,1.76070848]
[1748331612395,0.25878682,109390.0,109380.0,1.94355726]
[1748331612902,0.25878682,109390.0,109380.0,1.76070848]
[1748331613094,0.25878682,109390.0,109380.0,1.30465961]
[1748331613316,0.24964547,109390.0,109380.0,1.95161961]
[1748331614194,0.24964547,109390.0,109380.0,1.96076188]
[1748331614556,0.24964547,109390.0,109380.0,1.96990398]
[1748331614770,0.24964547,109390.0,109380.0,1.32294398]
[1748331614994,0.24964547,109390.0,109380.0,1.96990406]
[1748331615211,0.24964547,109390.0,109380.0,1.97904616]
[1748331615401,0.24964547,109390.0,109380.0,1.68668188]
[1748331615541,0.24964547,109390.0,109380.0,1.96990406]
[1748331615765,0.24964547,109390.0,109380.0,1.32294406]
[1748331615968,0.24964547,109390.0,109380.0,1.96990406]
[1748331616607,0.24964547,109390.0,109380.0,1.97904616]
[1748331616822,0.24964547,109390.0,109380.0,1.96990406]
[1748331618794,0.24964547,109390.0,109380.0,1.61494423]
[1748331619027,0.24964547,109390.0,109380.0,1.96076188]
[1748331619243,0.24964547,109390.0,109380.0,1.65925483]